bitfinex/quotes_SOLUSD_20240727
["timestamp","ask_amount","ask_price","bid_price","bid_amount"]
[1722066574701,5.3737,186.09,186.06,0.8029397]
[1722066575178,5.3735,186.1,186.06,0.8029397]
[1722066575677,12.48,186.11,186.06,0.8029397]
[1722066575881,15.5864,186.09,186.06,0.8029397]
[1722066576501,45.0,186.08,186.06,0.8029397]
[1722066583417,45.0,186.08,186.06,6.1772397]
[1722066583703,45.0,186.08,186.06,6.1774397]
[1722066583911,45.0,186.08,186.06,0.8029397]
[1722066584416,45.0,186.08,186.06,13.2829397]
[1722066584912,45.0,186.08,186.06,0.8029397]
[1722066585115,45.0,186.08,186.06,13.2829397]
[1722066585408,45.0,186.08,186.06,0.8029397]
[1722066585615,65.0,186.08,186.06,0.8029397]
[1722066587011,26.4967,186.11,186.06,0.8029397]
[1722066587215,26.4967,186.11,186.08,12.48]
[1722066587389,26.4967,186.11,186.06,0.8029397]
[1722066587588,26.4967,186.11,186.06,18.6574397]
[1722066587790,26.4967,186.11,186.06,13.2829397]
[1722066588014,26.4967,186.11,186.06,18.6575397]
[1722066588185,45.0,186.1,186.06,18.6575397]
[1722066588382,45.0,186.1,186.06,13.2829397]
[1722066591606,26.4967,186.11,186.08,5.3739]
[1722066591913,15.7122,186.13,186.1,12.48]
[1722066592222,15.7122,186.17,186.12,25.9116]
[1722066592416,9.6886876,186.16,186.12,13.4316]
[1722066592594,9.6886876,186.16,186.14,13.43]
[1722066592796,25.19047813,186.2,186.16,5.3714]
[1722066593009,15.50179053,186.2,186.16,5.3714]
[1722066593210,9.68848684,186.19,186.18,12.48]
[1722066593822,25.19009557,186.2,186.18,12.48]
[1722066594112,9.68848684,186.19,186.18,12.48]
[1722066594332,9.68848684,186.19,186.17,12.48]
[1722066595115,9.68848684,186.18,186.17,12.48]
[1722066595315,9.68848684,186.2,186.17,12.48]
[1722066595519,21.4606,186.21,186.17,12.48]
[1722066595720,9.68851731,186.19,186.17,12.48]
[1722066595920,9.68851731,186.18,186.17,12.48]
[1722066596114,9.68851731,186.19,186.17,12.48]
[1722066596318,54.68851731,186.18,186.15,5.372]
[1722066596524,45.0,186.2,186.17,12.48]
[1722066596696,9.68850509,186.19,186.17,12.48]
[1722066596897,45.0,186.18,186.17,12.48]
[1722066597097,9.68850509,186.18,186.17,12.48]
[1722066597517,9.68850509,186.2,186.17,12.48]
[1722066597717,45.0,186.19,186.17,12.48]
[1722066597921,9.68850509,186.18,186.16,12.48]
[1722066599726,9.68850509,186.18,186.16,17.8516]
[1722066601028,9.68850509,186.18,186.14,13.43]
[1722066601228,45.0,186.17,186.14,25.91]
[1722066601423,45.0,186.17,186.12,5.3726]
[1722066601727,9.68863039,186.16,186.12,5.3726]
[1722066601928,20.0,186.13,186.07,25.9157]
[1722066602110,16.4465,186.15,186.12,5.3728]
[1722066602316,9.68886161,186.14,186.13,5.3725]
[1722066602623,45.0,186.17,186.14,5.3721]
[1722066602830,9.68879474,186.16,186.15,5.372]
[1722066603005,9.68879474,186.17,186.16,5.3717]
[1722066603207,54.68879474,186.17,186.16,5.3717]
[1722066603417,54.68879474,186.17,186.14,12.48]
[1722066603729,9.68879474,186.16,186.15,17.852]
[1722066603908,9.68879474,186.19,186.15,17.852]
[1722066604111,54.68879474,186.18,186.15,17.852]
[1722066604306,9.68879474,186.17,186.15,17.852]
[1722066604812,45.0,186.18,186.16,5.3715]
[1722066605015,16.4465,186.2,186.16,12.48]
[1722066605226,16.4465,186.2,186.18,5.3711]
[1722066605435,9.6884902,186.19,186.18,5.3711]
[1722066605611,9.6884902,186.19,186.15,13.4295]
[1722066605811,9.6884902,186.19,186.15,18.8014]
[1722066606608,45.0,186.18,186.15,18.8014]
[1722066606809,9.6884902,186.17,186.15,18.8014]
[1722066607215,9.6884902,186.17,186.16,5.3717]
[1722066608339,45.0,186.18,186.16,5.3717]
[1722066608634,9.68850263,186.17,186.16,5.3717]
[1722066608923,57.48,186.17,186.13,5.3725]
[1722066609133,9.68850263,186.16,186.13,5.3725]
[1722066609340,45.0,186.15,186.13,5.3725]
[1722066609834,45.0,186.16,186.13,5.3725]
[1722066610018,9.68866765,186.15,186.14,5.3723]
[1722066611646,9.68866765,186.15,186.13,5.3725]
[1722066611812,45.0,186.16,186.13,5.3725]
[1722066612132,12.48,186.18,186.13,5.3725]
[1722066612133,45.0,186.17,186.13,5.3725]
[1722066612741,45.0,186.17,186.12,13.432]
[1722066613430,45.0,186.17,186.12,25.912]
[1722066613633,45.0,186.18,186.14,5.372]
[1722066614041,65.0,186.18,186.13,5.3725]
[1722066614224,77.48,186.18,186.13,5.3725]
[1722066615740,57.48,186.18,186.14,5.3722]
[1722066616526,45.0,186.18,186.14,5.3722]
[1722066617018,45.0,186.18,186.13,5.3725]
[1722066617418,77.48,186.18,186.13,5.3725]
[1722066618343,57.48,186.18,186.13,5.3725]
[1722066618531,45.0,186.18,186.14,5.3721]
[1722066618723,45.0,186.19,186.14,5.3721]
[1722066618930,45.0,186.19,186.15,5.3719]
[1722066619364,45.0,186.19,186.14,5.3722]
[1722066619527,57.48,186.19,186.14,5.3722]
[1722066620935,45.0,186.19,186.15,5.3719]
[1722066621128,45.0,186.19,186.14,25.9103]
[1722066621452,45.0,186.19,186.16,5.3716]
[1722066622423,45.0,186.19,186.17,5.3713]
[1722066623538,45.0,186.19,186.16,13.4289]
[1722066623539,15.0,186.21,186.16,25.9089]
[1722066623727,15.0,186.21,186.19,5.3707]
[1722066624152,15.0,186.21,186.16,13.4289]
[1722066624450,15.0,186.21,186.17,5.3714]
[1722066624830,45.0,186.2,186.17,5.3714]
[1722066625248,45.0,186.2,186.14,12.48]
[1722066625420,45.0,186.2,186.15,5.3719]
[1722066625421,12.48,186.19,186.15,5.3719]
[1722066625625,45.0,186.18,186.13,13.4314]
[1722066625839,45.0,186.18,186.16,5.3717]
[1722066626151,45.0,186.19,186.16,5.3717]
[1722066627550,45.0,186.19,186.17,5.3714]
[1722066627753,45.0,186.2,186.17,5.3714]
[1722066628043,45.0,186.2,186.16,5.3717]
[1722066628248,57.48,186.2,186.15,13.4296]
[1722066629354,57.48,186.2,186.16,5.3716]
[1722066630558,12.48,186.19,186.16,5.3716]
[1722066630729,12.48,186.19,186.15,13.4296]
[1722066630730,45.0,186.18,186.15,18.8015]
[1722066631266,57.48,186.18,186.12,13.4321]
[1722066631438,12.48,186.17,186.12,13.4321]
[1722066631634,45.0,186.16,186.13,5.3723]
[1722066631846,45.0,186.16,186.14,5.3722]
[1722066634390,57.48,186.16,186.13,5.3725]
[1722066635270,77.48,186.16,186.13,5.3725]
[1722066636270,77.48,186.16,186.1,5.3733]
[1722066636271,12.48,186.14,186.1,5.3733]
[1722066636565,12.48,186.13,186.1,5.3733]
[1722066636742,12.48,186.13,186.11,5.3731]
[1722066636743,45.0,186.12,186.11,5.3731]
[1722066636931,45.0,186.12,186.09,13.434]
[1722066637135,57.48,186.12,186.1,5.3732]
[1722066638373,45.0,186.12,186.09,13.434]
[1722066638667,45.0,186.12,186.09,18.8077]
[1722066639261,20.0,186.11,186.09,13.434]
[1722066639462,45.0,186.1,186.08,5.3739]
[1722066640357,45.0,186.1,186.07,5.3742]
[1722066641351,45.0,186.11,186.07,5.3742]
[1722066641555,45.0,186.12,186.07,5.3742]
[1722066642054,45.0,186.12,186.1,5.3732]
[1722066643071,45.0,186.12,186.09,5.3737]
[1722066643448,45.0,186.12,186.1,5.3734]
[1722066643654,35.0,186.21,186.16,5.3717]
[1722066643855,15.5022438,186.2,186.19,5.3708]
[1722066644082,30.5022438,186.21,186.18,5.3711]
[1722066644570,30.5022438,186.21,186.16,13.4293]
[1722066645057,30.5022438,186.21,186.17,12.48]
[1722066645263,30.5022438,186.21,186.17,17.8513]
[1722066645766,30.5022438,186.21,186.16,31.2809]
[1722066645961,15.0,186.21,186.16,31.2809]
[1722066646272,32.48,186.2,186.13,12.48]
[1722066646448,32.48,186.2,186.14,5.3722]
[1722066646855,45.0,186.19,186.14,5.3722]
[1722066647457,20.0,186.18,186.13,5.3725]
[1722066647751,45.0,186.17,186.13,5.3725]
[1722066647962,45.0,186.17,186.13,18.8037]
[1722066648179,45.0,186.17,186.13,13.4312]
[1722066648759,20.0,186.16,186.13,13.4312]
[1722066648968,57.48,186.15,186.1,13.4335]
[1722066649270,32.48,186.14,186.08,5.374]
[1722066649574,61.387,186.15,186.06,0.8029397]
[1722066649575,12.48,186.1,186.06,0.8029397]
[1722066649746,32.48,186.1,186.06,6.1774397]
[1722066649949,57.48,186.09,186.06,6.1774397]
[1722066650556,57.48,186.09,186.06,0.8029397]
[1722066652079,57.48,186.09,186.07,5.3742]
[1722066652691,57.48,186.09,186.06,6.1774397]
[1722066652857,12.48,186.08,186.06,6.1774397]
[1722066653173,45.0,186.07,186.06,6.1774397]
[1722066655252,32.48,186.11,186.08,5.3739]
[1722066655458,45.0,186.1,186.07,13.4355]
[1722066655856,45.0,186.1,186.07,18.8097]
[1722066656059,12.48,186.09,186.06,0.8029397]
[1722066656369,45.0,186.08,186.06,0.8029397]
[1722066656568,57.48,186.08,186.06,0.8029397]
[1722066658155,45.0,186.08,186.06,6.1772397]
[1722066658556,45.0,186.08,186.07,5.3743]
[1722066660463,45.0,186.08,186.06,0.8029397]
[1722066661374,57.48,186.08,186.06,0.8029397]
[1722066661579,12.48,186.07,186.06,0.8029397]
[1722066661776,57.48,186.07,186.06,0.8029397]
[1722066662767,77.48,186.07,186.06,0.8029397]
[1722066664890,45.0,186.07,186.06,0.8029397]
[1722066665464,45.0,186.07,186.06,6.1775397]
[1722066665900,45.0,186.07,186.06,0.8029397]
[1722066666696,57.48,186.07,186.06,0.8029397]
[1722066667483,45.0,186.07,186.06,0.8029397]
[1722066672281,45.0,186.07,186.06,6.1775397]
[1722066672578,45.0,186.07,186.06,0.8029397]
[1722066673574,57.48,186.07,186.06,0.8029397]
[1722066673907,45.0,186.07,186.06,6.1775397]
[1722066674593,45.0,186.07,186.06,0.8029397]
[1722066675375,57.48,186.07,186.06,0.8029397]
[1722066676774,77.48,186.07,186.06,0.8029397]
[1722066677590,20.0,186.05,185.91,21.1363]
[1722066677794,12.48,186.03,186.0,5.376]
[1722066677993,45.0,186.02,185.91,21.1363]
[1722066678176,12.48,186.04,186.01,5.376]
[1722066678504,12.48,186.04,185.91,21.1363]
[1722066678505,45.0,186.03,186.02,5.3757]
[1722066678886,11.66558368,186.07,185.99,12.48]
[1722066679092,28.9299,186.08,186.05,5.3748]
[1722066679483,28.9299,186.08,186.04,5.3751]
[1722066680378,16.4499,186.08,186.03,12.48]
[1722066680579,28.9299,186.12,186.05,12.48]
[1722066680791,22.5094,186.17,186.09,12.48]
[1722066680991,34.9894,186.17,186.1,12.48]
[1722066681277,22.05368822,186.17,186.13,5.3724]
[1722066681494,34.53368822,186.17,186.13,5.3724]
[1722066681693,34.53368822,186.17,186.1,12.48]
[1722066681694,34.53368822,186.17,186.12,5.3728]
[1722066681881,22.05368822,186.17,186.12,5.3728]
[1722066682081,22.05368822,186.17,186.13,5.3724]
[1722066682309,21.0595,186.21,186.13,12.48]
[1722066682490,12.48,186.2,186.13,12.48]
[1722066682696,12.48,186.2,186.15,5.3717]
[1722066683008,12.48,186.19,186.15,5.3717]
[1722066683392,12.48,186.18,186.11,12.48]
[1722066683581,57.48,186.17,186.13,5.3725]
[1722066685207,45.0,186.17,186.13,5.3725]
[1722066685517,45.0,186.18,186.13,5.3725]
[1722066685895,45.0,186.19,186.13,5.3725]
[1722066686304,50.3709,186.19,186.13,5.3725]
[1722066687115,50.3709,186.19,186.07,21.0505]
[1722066687116,25.3714,186.17,186.11,5.3729]
[1722066687281,20.0,186.15,186.08,5.3737]
[1722066687476,45.0,186.14,186.1,5.3733]
[1722066687787,25.372,186.15,186.03,6.4473]
[1722066687986,50.3723,186.14,186.03,6.4473]
[1722066688212,20.0,186.13,186.03,6.4473]
[1722066688389,45.0,186.12,186.07,5.374]
[1722066688726,20.0,186.1,185.98,6.4473]
[1722066689013,45.0,186.09,185.98,6.4473]
[1722066689209,45.0,186.09,186.06,5.3745]
[1722066689412,45.0,186.1,186.06,5.3745]
[1722066689598,45.0,186.1,186.07,5.3742]
[1722066689797,45.0,186.1,185.99,24.99]
[1722066690014,45.0,186.1,186.09,5.3737]
[1722066690309,16.3046,186.13,186.1,5.3731]
[1722066690484,6.0748,186.16,186.02,24.99]
[1722066690816,6.0748,186.16,186.1,5.3731]
[1722066691191,6.0748,186.16,186.11,5.3731]
[1722066691791,45.0,186.15,186.11,5.3731]
[1722066692193,45.0,186.15,186.12,5.3727]
[1722066692496,16.3046,186.17,186.02,26.06475531]
[1722066692805,16.3046,186.17,186.12,5.3728]
[1722066693700,21.6761,186.17,186.11,5.3731]
[1722066693903,45.0,186.16,186.11,5.3731]
[1722066694292,45.0,186.16,186.1,5.3734]
[1722066694293,65.0,186.16,186.1,5.3734]
[1722066694714,45.0,186.16,186.11,5.3731]
[1722066694905,45.0,186.16,186.14,5.3722]
[1722066695211,45.0,186.16,186.12,5.3725]
[1722066695414,45.0,186.16,186.13,5.3724]
[1722066695601,16.3046,186.17,186.13,5.3724]
[1722066696808,45.0,186.16,186.13,5.3724]
[1722066697806,45.0,186.16,186.11,5.3728]
[1722066698898,20.0,186.15,186.09,5.3735]
[1722066699205,20.0,186.15,185.99,1.07462106]
[1722066699206,45.0,186.14,186.02,24.99]
[1722066699396,45.0,186.16,186.03,20.0]
[1722066699596,50.3717,186.16,186.1,5.3732]
[1722066699998,20.0,186.15,186.1,5.3732]
[1722066700212,45.0,186.14,186.1,5.3732]
[1722066700800,45.0,186.14,186.11,5.3731]
[1722066701000,65.0,186.15,186.11,5.3731]
[1722066702441,45.0,186.15,186.12,5.3728]
[1722066702591,45.0,186.15,186.13,5.3725]
[1722066702796,45.0,186.16,186.13,5.3725]
[1722066703099,15.0,186.21,186.15,24.99]
[1722066703299,15.0,186.21,186.2,5.3705]
[1722066704921,15.0,186.21,186.2,26.421]
[1722066709433,15.0,186.21,186.2,11.8178]
[1722066709724,15.0,186.21,186.2,5.3705]
[1722066710622,15.0,186.21,186.2,6.44441795]
[1722066710819,15.0,186.21,186.2,50.3705]
[1722066711027,15.0,186.21,186.2,70.3705]
[1722066711619,15.0,186.21,186.2,25.3705]
[1722066712422,15.0,186.21,186.2,70.3705]
[1722066712715,15.0,186.21,186.2,25.3705]
[1722066713123,15.0,186.21,186.2,70.3705]
[1722066714437,15.0,186.21,186.2,25.3705]
[1722066714637,15.0,186.21,186.2,70.3705]
[1722066715130,5.366,186.36,186.2,96.4736]
[1722066715317,5.366,186.36,186.25,24.99]
[1722066715318,45.0,186.35,186.25,24.99]
[1722066715517,45.0,186.35,186.26,1.07359975]
[1722066715707,11.4407,186.37,186.3,5.3674]
[1722066716234,11.4407,186.37,186.31,5.3673]
[1722066716620,26.0748,186.37,186.29,5.3677]
[1722066716819,45.0,186.36,186.29,5.3677]
[1722066717020,5.3662,186.35,186.29,5.3677]
[1722066717228,45.0,186.36,186.3,5.3675]
[1722066717535,5.3662,186.35,186.25,24.99]
[1722066717732,45.0,186.34,186.26,1.07363685]
[1722066717933,6.0748,186.37,186.3,5.3675]
[1722066718314,5.3662,186.35,186.25,24.99]
[1722066718514,45.0,186.34,186.25,24.99]
[1722066720239,45.0,186.34,186.3,5.3676]
[1722066720419,45.0,186.35,186.3,5.3676]
[1722066721836,50.3662,186.35,186.3,5.3676]
[1722066722021,45.0,186.35,186.3,5.3676]
[1722066722216,45.0,186.35,186.25,24.99]
[1722066722524,15.2487,186.38,186.28,24.99]
[1722066722841,20.6141,186.38,186.28,24.99]
[1722066723035,20.6141,186.38,186.32,5.367]
[1722066723339,15.2487,186.38,186.33,5.3668]
[1722066723741,15.2487,186.38,186.34,5.3665]
[1722066723942,45.0,186.37,186.32,5.3668]
[1722066724323,45.0,186.37,186.33,5.3667]
[1722066725040,45.0,186.37,186.28,24.99]
[1722066725041,45.0,186.37,186.35,5.3662]
[1722066725229,15.2487,186.38,186.29,1.07340215]
[1722066725430,6.3717,186.42,186.31,24.99]
[1722066725832,6.3717,186.42,186.37,5.3654]
[1722066726027,16.2629,186.43,186.38,5.3652]
[1722066726656,16.2629,186.43,186.31,24.99]
[1722066726819,15.7629,186.43,186.39,5.3648]
[1722066727118,15.7629,186.43,186.38,5.3653]
[1722066727319,15.7629,186.43,186.4,5.3647]
[1722066727941,6.3717,186.47,186.43,5.3638]
[1722066728264,6.3717,186.47,186.42,5.3642]
[1722066728427,5.5982907,186.5,186.37,31.5866]
[1722066728626,25.5982907,186.5,186.37,31.5866]
[1722066729049,10.9604907,186.5,186.42,5.3639]
[1722066729349,10.9604907,186.5,186.38,1.0728075]
[1722066729350,5.5982907,186.5,186.38,1.0728075]
[1722066729652,5.5982907,186.5,186.37,31.5866]
[1722066729847,16.2629,186.49,186.44,5.3636]
[1722066730029,16.2629,186.49,186.37,31.5866]
[1722066730231,5.3625,186.48,186.41,5.3642]
[1722066730760,16.2629,186.49,186.37,6.5966]
[1722066730942,5.3629,186.47,186.41,5.3644]
[1722066731137,45.0,186.46,186.41,5.3644]
[1722066731523,45.0,186.46,186.34,24.99]
[1722066731832,45.0,186.46,186.32,6.5966]
[1722066732226,5.3639,186.44,186.38,5.3653]
[1722066732545,50.3639,186.43,186.32,6.5966]
[1722066732925,16.2629,186.41,186.27,6.5966]
[1722066733248,16.2629,186.41,186.35,5.3659]
[1722066733249,45.0,186.4,186.35,5.3659]
[1722066733461,45.0,186.4,186.27,6.5966]
[1722066734055,45.0,186.4,186.35,5.366]
[1722066734439,45.0,186.4,186.36,5.3659]
[1722066735651,45.0,186.4,186.37,5.3656]
[1722066737233,45.0,186.4,186.37,5.3653]
[1722066737433,16.2629,186.41,186.38,5.3652]
[1722066738130,16.2629,186.41,186.28,1.07324271]
[1722066738448,16.2629,186.41,186.27,6.5966]
[1722066738651,45.0,186.4,186.31,1.07326564]
[1722066738850,16.2629,186.41,186.31,1.07326564]
[1722066739054,16.2629,186.41,186.38,5.3651]
[1722066740757,16.2629,186.41,186.36,5.3656]
[1722066741265,16.2629,186.41,186.37,5.3656]
[1722066742167,16.2629,186.41,186.28,1.07316173]
[1722066742337,16.2629,186.41,186.39,5.365]
[1722066742537,16.2629,186.41,186.38,5.3653]
[1722066744152,16.2629,186.41,186.38,5.3652]
[1722066745152,16.2629,186.41,186.33,24.99]
[1722066745361,16.2629,186.41,186.4,5.3648]
[1722066745752,16.2629,186.41,186.39,5.365]
[1722066748362,16.2629,186.41,186.38,5.3653]
[1722066748543,16.2629,186.41,186.37,5.3656]
[1722066750463,16.2629,186.41,186.33,24.99]
[1722066750667,16.2629,186.41,186.28,1.07311001]
[1722066750894,21.6275,186.41,186.35,5.366]
[1722066751183,16.2629,186.41,186.36,5.3658]
[1722066751347,16.2629,186.41,186.31,24.99]
[1722066751865,16.2629,186.41,186.37,5.3654]
[1722066752174,16.2629,186.41,186.38,5.3653]
[1722066752359,16.2629,186.41,186.31,26.06308775]
[1722066752667,16.2629,186.41,186.39,5.365]
[1722066753971,16.2629,186.41,186.31,24.99]
[1722066754968,16.2629,186.41,186.32,1.07314396]
[1722066755172,16.2629,186.41,186.39,5.365]
[1722066755671,16.2629,186.41,186.37,5.3655]
[1722066755875,16.2629,186.41,186.35,5.3659]
[1722066756074,21.6275,186.41,186.33,24.99]
[1722066756563,21.6275,186.41,186.28,1.07322243]
[1722066756564,21.6275,186.41,186.35,5.3661]
[1722066756874,21.6275,186.41,186.34,5.3664]
[1722066756875,5.3651,186.39,186.34,5.3664]
[1722066757171,45.0,186.4,186.35,5.3662]
[1722066757476,50.3649,186.4,186.34,5.3664]
[1722066757684,5.3651,186.39,186.34,5.3664]
[1722066757978,5.3653,186.39,186.33,5.3668]
[1722066758358,45.0,186.38,186.34,5.3664]
[1722066758557,45.0,186.38,186.28,24.99]
[1722066758558,5.3651,186.39,186.33,5.3667]
[1722066758762,45.0,186.38,186.34,5.3664]
[1722066759060,45.0,186.38,186.35,5.3662]
[1722066759259,45.0,186.39,186.35,5.3662]
[1722066759679,45.0,186.4,186.33,5.3665]
[1722066760665,5.3651,186.39,186.33,5.3665]
[1722066760993,5.3651,186.39,186.28,24.99]
[1722066760994,45.0,186.38,186.34,5.3665]
[1722066761165,21.6276,186.41,186.36,12.46]
[1722066761366,54.67976648,186.4,186.36,12.46]
[1722066761565,45.0,186.4,186.36,12.46]
[1722066762265,50.3648,186.4,186.36,12.46]
[1722066763384,15.04480163,186.39,186.33,5.3667]
[1722066763569,77.46,186.4,186.27,6.5966]
[1722066763773,12.46,186.39,186.32,12.46]
[1722066764079,60.04604083,186.38,186.32,17.8271]
[1722066764269,9.68064083,186.37,186.32,17.8271]
[1722066764467,15.04634083,186.37,186.32,17.8271]
[1722066764689,50.3654,186.38,186.32,17.8271]
[1722066764890,9.68098721,186.37,186.32,17.8271]
[1722066765185,15.04668721,186.37,186.32,5.3671]
[1722066765387,9.68098721,186.36,186.32,5.3671]
[1722066765883,9.68098721,186.36,186.33,5.3667]
[1722066766093,9.68098721,186.37,186.32,5.367]
[1722066766275,9.68115858,186.36,186.32,5.367]
[1722066766586,50.3654,186.38,186.32,5.367]
[1722066766782,15.04685728,186.37,186.32,5.367]
[1722066766994,9.68115728,186.36,186.29,24.94]
[1722066767165,9.68115728,186.36,186.35,5.3662]
[1722066767491,21.6274,186.41,186.35,5.3661]
[1722066768359,21.6274,186.41,186.36,5.3659]
[1722066768360,45.0,186.4,186.36,5.3659]
[1722066769875,45.0,186.4,186.35,5.3661]
[1722066770688,50.3648,186.4,186.35,5.3661]
[1722066771075,50.3648,186.4,186.34,5.3664]
[1722066772591,16.2629,186.41,186.32,24.94]
[1722066772789,16.2629,186.41,186.37,5.3656]
[1722066773385,16.2629,186.41,186.4,5.3648]
[1722066773585,16.2629,186.41,186.32,26.01304712]
[1722066773969,16.1988,186.45,186.35,24.94]
[1722066774195,16.1988,186.45,186.4,5.3645]
[1722066774513,16.1988,186.45,186.4,5.3646]
[1722066780604,21.5621,186.45,186.39,5.365]
[1722066780812,45.0,186.44,186.37,5.3653]
[1722066781015,5.3642,186.42,186.31,24.94]
[1722066781185,45.0,186.44,186.37,5.3656]
[1722066781186,5.364,186.43,186.37,5.3656]
[1722066781512,50.3636,186.44,186.38,5.3653]
[1722066781880,6.1755,186.42,186.32,20.0]
[1722066782087,50.3645,186.41,186.35,5.3662]
[1722066782585,50.3645,186.41,186.36,5.3659]
[1722066783208,45.0,186.41,186.37,5.3656]
[1722066783389,6.1755,186.42,186.39,5.365]
[1722066783588,6.1755,186.42,186.38,5.3653]
[1722066783989,6.1755,186.42,186.31,26.01301227]
[1722066784293,6.1755,186.42,186.39,5.365]
[1722066785203,6.1755,186.42,186.38,5.3653]
[1722066792326,6.1755,186.42,186.37,5.3656]
[1722066794199,6.1755,186.42,186.38,5.3653]
[1722066800220,6.1755,186.42,186.37,5.3656]
[1722066801317,11.5397,186.42,186.37,5.3656]
[1722066801529,45.0,186.41,186.37,5.3656]
[1722066803425,6.1755,186.42,186.31,1.07313436]
[1722066803636,6.1755,186.42,186.39,5.365]
[1722066803933,16.1988,186.45,186.39,12.46]
[1722066805321,16.1988,186.45,186.4,5.3647]
[1722066805524,16.1988,186.45,186.39,12.46]
[1722066805525,16.1988,186.45,186.41,5.3643]
[1722066808229,28.6588,186.45,186.4,5.3647]
[1722066808406,34.0224,186.45,186.39,5.365]
[1722066808605,5.3636,186.44,186.39,5.365]
[1722066809100,28.6588,186.45,186.38,12.46]
[1722066809305,12.46,186.43,186.38,5.3651]
[1722066809727,12.46,186.43,186.39,5.365]
[1722066810128,45.0,186.44,186.39,5.365]
[1722066810306,16.1988,186.45,186.39,12.46]
[1722066811009,16.1988,186.45,186.4,5.3645]
[1722066811232,16.1988,186.45,186.39,12.46]
[1722066811233,16.1988,186.45,186.41,5.3644]
[1722066811604,21.5622,186.45,186.39,17.8248]
[1722066811809,50.3637,186.44,186.39,5.365]
[1722066812104,50.3637,186.44,186.38,12.46]
[1722066812321,5.364,186.43,186.37,12.46]
[1722066812743,4.994,186.43,186.37,12.46]
[1722066813432,57.46,186.44,186.38,12.46]
[1722066813433,45.0,186.44,186.38,12.46]
[1722066814233,45.0,186.44,186.4,5.3647]
[1722066815112,5.3652,186.39,186.28,1.07298094]
[1722066815441,57.46,186.38,186.31,12.46]
[1722066815618,57.46,186.38,186.32,12.46]
[1722066815812,45.0,186.38,186.32,12.46]
[1722066816555,45.0,186.38,186.33,12.46]
[1722066817326,45.0,186.39,186.33,12.46]
[1722066817613,50.3651,186.39,186.33,12.46]
[1722066818037,57.46,186.39,186.33,12.46]
[1722066818214,5.3658,186.37,186.31,12.46]
[1722066818634,15.6131,186.36,186.31,12.46]
[1722066818825,45.0,186.35,186.29,12.46]
[1722066819720,50.3663,186.35,186.3,5.3674]
[1722066819920,12.46,186.34,186.27,405.2285]
[1722066820229,5.3678,186.3,186.27,387.4]
[1722066820436,17.8274,186.31,186.27,387.4]
[1722066820837,65.0,186.35,186.27,387.4]
[1722066820838,6.3378,186.29,186.27,387.4]
[1722066821038,6.3378,186.29,186.23,12.46]
[1722066821237,6.3378,186.29,186.19,387.4]
[1722066821537,6.3378,186.29,186.25,5.369]
[1722066821740,6.3378,186.29,186.25,12.46]
[1722066821950,15.6131,186.3,186.27,5.3683]